Cogmind - Beta 15 --- EXPLORER MODE // 2025.06.14 @ 19:16:26 // AFD2019/Pay2Buy Player: aaa Result: Self-destructed Performance ------------- Evolutions (1) 500 Regions Visited (2) 400 Robots Destroyed (56) 280 Value Destroyed (1095) 1095 Prototype IDs (1) 20 Alien Tech Used (0) 0 Bonus (30) 30 TOTAL SCORE: 2325 Bonus ------- High Alert Combat Kills 30 Cogmind --------- Core Integrity 355/400 Matter 284/300 Energy 100/100 System Corruption 0% Temperature Cool (0) Movement Treading (160) Location -9/Materials Parts ------- > --- POWER (1) -------- Subdweller Power Source > --- PROPULSION (2) --- Spiked Treads Spiked Treads > --- UTILITY (5) ------ Sensor Array Signal Interpreter > --- WEAPON (2) ------- EMP Blaster Subdweller Shrapnel Launcher > --- INVENTORY (10) --- (None) Peak State ------------ > --- POWER ------------ Subdweller Power Source > --- PROPULSION ------- Spiked Treads Spiked Treads > --- UTILITY ---------- Sensor Array Signal Interpreter > --- WEAPON ----------- EMP Blaster Subdweller Shrapnel Launcher > --- INVENTORY -------- (None) [Rating: 12] Favorites ----------- Power Subdweller Power Source Engine Subdweller Power Source Propulsion Spiked Treads Treads Spiked Treads Utility Sensor Array Device Sensor Array Processor Signal Interpreter Weapon EMP Blaster Launcher EMP Blaster Build | -11 -10 -9 ------- Run | Yrd Mat Mat Slots Evolved 3 | . 1 2 Power . | . . . Propulsion . | . . . Utility 3 | . 1 2 Weapon . | . . . Parts Attached 2 | . 2 . Power . | . . . Engine . | . . . Core . | . . . Reactor . | . . . Propulsion . | . . . Treads . | . . . Leg . | . . . Wheel . | . . . Hover . | . . . Flight . | . . . Utility 2 | . 2 . Device 1 | . 1 . Storage . | . . . Processor 1 | . 1 . Hackware . | . . . Protection . | . . . Artifact . | . . . Weapon . | . . . Energy Gun . | . . . Energy Cannon . | . . . Ballistic Gun . | . . . Ballistic Cannon . | . . . Launcher . | . . . Special Weapon . | . . . Impact Weapon . | . . . Slashing Weapon . | . . . Piercing Weapon . | . . . Special Melee Weapon . | . . . Unidentified Prototypes . | . . . Parts Lost . | . . . Power . | . . . Propulsion . | . . . Utility . | . . . Weapon . | . . . Highest Loss Streak . | . . . To Critical Strikes . | . . . Average Backups . | . . . Power . | . . . Propulsion . | . . . Utility . | . . . Weapon . | . . . Tool/Special . | . . . Unused Backups 1 | . 1 . Power . | . . . Propulsion 1 | . 1 . Utility . | . . . Weapon . | . . . Tool/Special . | . . . Average Slot Usage (%) 67 | . 67 67 Engine 11 | . 12 10 Treads 23 | . 25 20 Device 8 | . 8 10 Processor 8 | . 8 10 Launcher 13 | . 12 17 Peak Build Rating 12 | 6 10 12 Average Rating 9 | 5 9 11 On Entrance 5 | . 6 10 Naked Turns . | . . . Heaviest Build 18 | 5 10 18 Greatest Support 40 | 40 40 40 Greatest Overweight (x) . | . . . Average Overweight (x) . | . . . Largest Inventory Capacity 10 | 10 10 10 Average Capacity 10 | 10 10 10 Most Carried . | . . . Average Carried . | . . . Final Capacity 10 | 10 10 10 Final Carried . | . . . Class Distribution -------------------- 100% | Hacker-Mutant Dominant Class ---------------- Hacker-Mutant | -10/Materials Hacker-Mutant | -9/Materials Resources | -11 -10 -9 ----------- Run | Yrd Mat Mat Matter Collected 712 | . 316 396 Remotely . | . . . Salvage Created 1815 | . 600 1215 Parts . | . . . Haulers Intercepted 4 | . 2 2 Recyclers Shooed . | . . . Parts Field Recycled . | . . . Retrieved Matter . | . . . Parts Self-Destructed . | . . . Prevented . | . . . Kills | -11 -10 -9 ------- Run | Yrd Mat Mat Combat Hostiles Destroyed 28 | . 8 20 AOE 27 | . 8 19 Classes Destroyed 11 | . 8 3 Worker 8 | . 3 5 Builder 2 | . 1 1 Tunneler 3 | . 3 . Hauler 4 | . 2 2 Recycler 4 | . 1 3 Watcher 7 | . 3 4 Swarmer 9 | . 6 3 Grunt 12 | . 2 10 Brawler 1 | . . 1 Duelist 1 | . . 1 Sentry 5 | . . 5 Best Kill Streak 8 | . 4 8 Combat Bots Only 7 | . 2 7 Max Kills in Single Turn 5 | . 2 5 Gunslinging . | . . . Exploded 2 | . 2 2 Melee . | . . . Uniques/NPCs Destroyed . | . . . Combat | -11 -10 -9 -------- Run | Yrd Mat Mat Hostile Shots Fired 55 | . 12 43 Missed 18 | . 5 13 Hits 37 | . 7 30 Projectile 37 | . 7 30 Damage Taken 302 | . 36 266 Core 50 | . 5 45 Absorbed by Shields . | . . . Ignored by Resistances 193 | . 25 168 Core Remaining (%) 99 | 100 98 . Volleys Fired 61 | . 25 36 Largest 2 | . 1 2 Hottest 73 | . 33 73 Shots Fired 72 | . 25 47 Gun . | . . . Cannon . | . . . Launcher 72 | . 25 47 Special . | . . . Kinetic 14 | . . 14 Thermal . | . . . Explosive . | . . . Electromagnetic 58 | . 25 33 Robot Hit Streak 20 | . 5 20 Robot Miss Streak 1 | . 1 1 Penetration Max . | . . . Secondary Targets . | . . . Shots Hit Robots 50 | . 14 36 Core Hits 65 | . 20 45 Critical Kills . | . . . Critical Parts Destroyed . | . . . Critical Strikes . | . . . Melee Attacks . | . . . Impact . | . . . Slashing . | . . . Piercing . | . . . Sneak Attacks . | . . . Combat Hostiles . | . . . Follow-up Attacks . | . . . Damage Inflicted 3064 | . 799 2265 Guns . | . . . Cannons . | . . . Explosions 3045 | . 780 2265 Melee . | . . . Ramming 19 | . 19 . Kinetic 1106 | . . 1106 Thermal . | . . . Explosive 145 | . 93 52 Electromagnetic 1794 | . 687 1107 Impact . | . . . Slashing . | . . . Piercing . | . . . Highest Corruption . | . . . Average Corruption . | . . . Corruption Purged . | . . . Corruption Blocked . | . . . Overload Shots . | . . . Overflow Damage 85 | . 20 65 Projectiles . | . . . Explosions 85 | . 20 65 Melee . | . . . Knockbacks . | . . . Impact . | . . . Kinetic . | . . . Secondary . | . . . Self-Inflicted Damage 29 | . 4 25 Shots 5 | . 1 4 Rammed 3 | . 3 . Targets Rammed 3 | . 3 . Kicked . | . . . Crushed . | . . . Highest Temperature 16 | . . 16 Average Temperature 4 | . . 4 Received Heat Transfer 117 | . . 117 Siege Activations . | . . . Martial Activations . | . . . Shielding Activations . | . . . Robots Disrupted . | . . . Combat Hostiles . | . . . Robots Corrupted 4 | . 3 1 Combat Hostiles 1 | . . 1 Parts Fried . | . . . Impact Corruptions . | . . . Robots Melted . | . . . Combat Hostiles . | . . . Parts Melted . | . . . Heat Transferred . | . . . Parts Sabotaged . | . . . Parts Stolen . | . . . Parts Stripped . | . . . Power Chain Reactions . | . . . Alert | -11 -10 -9 ------- Run | Yrd Mat Mat Maximum Alert Level 2 | . . 2 Low Security (%) 78 | 100 100 23 Level 1 18 | . . 66 Level 2 2 | . . 10 Level 3 . | . . . Level 4 . | . . . Level 5 . | . . . High Security . | . . . Max Security . | . . . Peak Influence 522 | . 87 522 Initial . | . . . Average 81 | . 11 262 Influence Increases 1110 | . 318 792 Destroy 0b10 Robot/C 560 | . 160 400 Destroy 0b10 Robot/NC 140 | . 65 75 Destroy Leader 162 | . 40 122 Disable Machine 32 | . 16 16 Destroy Structure 216 | . 37 179 Influence Decreases 618 | . 318 300 Time Decay 618 | . 318 300 Squads Dispatched 1 | . . 1 Investigation . | . . . Extermination . | . . . Reinforcement 1 | . . 1 Assault . | . . . Garrison . | . . . Intercept . | . . . Searches Triggered . | . . . Construction Impeded . | . . . Haulers Reinforced . | . . . Active Scanning Responses . | . . . Cargo Convoy Interrupts . | . . . Stealth | -11 -10 -9 --------- Run | Yrd Mat Mat Distress Signals 2 | . 1 1 Communications Jammed . | . . . Distress Signals . | . . . Times Spotted 36 | . 12 24 Peak Tracking Total 7 | . 3 7 Tactical Retreats . | . . . Traps | -11 -10 -9 ------- Run | Yrd Mat Mat Traps Triggered 4 | . 4 . Indirectly 2 | . 2 . Trap Hack Attempts . | . . . Triggered . | . . . Disarmed . | . . . Reprogrammed . | . . . Reused . | . . . Traps Extracted . | . . . Installed . | . . . Triggered . | . . . Machines | -11 -10 -9 ---------- Run | Yrd Mat Mat Machines Disabled 9 | . 4 5 Max in Single Turn 2 | . 2 1 Machines Repaired . | . . . Machines Dismantled . | . . . Machines Sabotaged . | . . . Overloaded Fab Kills . | . . . Hacking | -11 -10 -9 --------- Run | Yrd Mat Mat Machines Accessed . | . . . Terminals . | . . . Fabricators . | . . . Repair Stations . | . . . Recycling Units . | . . . Scanalyzers . | . . . Garrison Access . | . . . Total Hacks . | . . . Successful . | . . . Failed . | . . . Catastrophic . | . . . Database Lockouts . | . . . Manual . | . . . Terminals . | . . . Fabricators . | . . . Repair Stations . | . . . Recycling Units . | . . . Scanalyzers . | . . . Garrison Access . | . . . Terminal Hacks . | . . . Fabricator Hacks . | . . . Repair Station Hacks . | . . . Recycling Unit Hacks . | . . . Scanalyzer . | . . . Garrison Access Hacks . | . . . Unauthorized Hacks . | . . . Terminals . | . . . Fabricators . | . . . Repair Stations . | . . . Recycling Units . | . . . Scanalyzers . | . . . Garrison Access . | . . . Data Cores Recovered . | . . . Used . | . . . Hacking Detections . | . . . Full Trace Events . | . . . Feedback Events . | . . . Feedback Blocked . | . . . Robot Schematics Acquired . | . . . Robots Built . | . . . Authchips . | . . . Time . | . . . Total Robot Build Rating . | . . . Part Schematics Acquired . | . . . Parts Built . | . . . Authchips . | . . . Time . | . . . Total Part Build Rating . | . . . Parts Repaired . | . . . Time . | . . . Parts Recycled . | . . . Recycled Matter . | . . . Retrieved Matter . | . . . Retrieved Components . | . . . Parts Scanalyzed . | . . . Part Schematics Acquired . | . . . Parts Damaged . | . . . Bothacking | -11 -10 -9 ------------ Run | Yrd Mat Mat Used RIF Installer . | . . . Robots Hacked . | . . . Non-combat . | . . . Combat . | . . . Robot Hacks Applied . | . . . Relay Couplers Released . | . . . Fabnet Peak Effective % . | . . . Robots Rewired . | . . . Allies Hacked . | . . . Hacks Repelled . | . . . Allies | -11 -10 -9 -------- Run | Yrd Mat Mat Total Allies . | . . . Largest Group . | . . . Highest-Rated Group . | . . . Highest-Rated Ally . | . . . Total Orders . | . . . Ally Attacks . | . . . Total Damage . | . . . Kills . | . . . Allies Corrupted . | . . . Allies Melted . | . . . Intel | -11 -10 -9 ------- Run | Yrd Mat Mat Active Infowar (turns) 1201 | . 773 428 Sensors 1201 | . 773 428 Robot Analysis Total . | . . . Derelict Logs Recovered . | . . . Drone Launches . | . . . Drone Recoveries . | . . . Exploration | -11 -10 -9 ------------- Run | Yrd Mat Mat Turns Passed 1550 | 30 1092 428 Spaces Moved 853 | 19 647 187 Core . | . . . Treads 853 | 19 647 187 Legs . | . . . Wheels . | . . . Hover . | . . . Flight . | . . . Fastest Speed 160 | 160 160 160 Average Speed 160 | 160 160 160 Slowest Speed 160 | 160 160 160 Overloaded Moves . | . . . Propulsion Burnouts . | . . . Robots Hopped . | . . . Potential Cave-ins . | . . . Cave-ins Triggered . | . . . Exploration Rate (%) 37 | 3 72 36 Regions Visited 2 Branch Regions . Pre-discovered Areas . | . . . Known Exits Taken 2 | 1 1 . Unknown Exits Taken . | . . . Scrap Searched . | . . . Spaces Dug . | . . . Terrain Destroyed 246 | . 49 197 Melee . | . . . Projectile . | . . . AOE 246 | . 49 197 Terrain Rammed . | . . . Walls Destroyed . | . . . Machines Disabled . | . . . Actions | -11 -10 -9 --------- Run | Yrd Mat Mat Total 964 | 19 677 268 Wait 45 | . . 45 Move 851 | 18 646 187 Hop . | . . . Pick Up . | . . . Fast Attach 2 | . 2 . Attach . | . . . Detach . | . . . Swap . | . . . Drop 2 | 1 1 . Fire 61 | . 25 36 Melee . | . . . Ram . | . . . Kick . | . . . Crush 3 | . 3 . Escape Stasis . | . . . Rewire . | . . . Trap . | . . . Miscellaneous . | . . . Route ------- -11/Scrapyard -10/Materials (discovered 4 exits: *Mat x3 / *Sub) -9/Materials (discovered 1 exit: *Min) History --------- Turn | Location | Event 10 | -11/Scrapyard | Identified exit to Materials 10 | -11/Scrapyard | Discovered exit to Materials (range 13) 31 | -11/Scrapyard | Entered Materials 31 | -10/Materials | Evolved 1 slot: Utility x1 170 | -10/Materials | Identified exit to Materials 170 | -10/Materials | Discovered exit to Materials (range 10) 317 | -10/Materials | Build established: Hacker-Mutant 458 | -10/Materials | Discovered exit to Materials (range 14) 550 | -10/Materials | Discovered exit to Materials (range 7) 563 | -10/Materials | Identified exit to Subcaves 563 | -10/Materials | Discovered exit to Subcaves (range 8) 1123 | -10/Materials | Entered another Materials area 1123 | -9/Materials | Evolved 2 slots: Utility x2 1217 | -9/Materials | Destroyed 7 combat bots 1310 | -9/Materials | Identified exit to Mines 1310 | -9/Materials | Discovered exit to Mines (range 14) 1551 | -9/Materials | Self-destructed Last Messages --------------- 01491_ Acquired 11 matter. 01491_ U-05 Engineer lays Concrete. 01492_ The unstable cave ceiling collapses. 01492_ U-05 Engineer lays Concrete. 01493_ U-05 Engineer builds a Wall. 01494_ U-05 Engineer lays Concrete. 01494_ U-05 Engineer builds a Wall. 01495_ U-05 Engineer lays Concrete. 01497_ The unstable cave ceiling collapses. 01497_ U-05 Engineer builds a Wall. 01500_ U-05 Engineer lays Concrete. 01500_ K-01 Serf collects debris. 01503_ G-34 Mercenary destroyed. 01505_ Destroyed Heat Sink. 01509_ G-34 Mercenary destroyed. 01513_ Y-45 Defender destroyed. 01513_ R-06 Scavenger destroyed. 01515_ Y-45 Defender destroyed. 01517_ Acquired 71 matter. 01529_ Acquired 21 matter. Map ----- +----------------------------------------------------+ | ???????????########### #???????????????????????? | | ????????????????????## ##??????????????????????? | | ????????????????????## ##??????????????????????? | | ???????????????????### ########????????????????? | | ???????????????????# # ## #????????????????? | | ???????????????????## # "" #????????????????? | | ???????????????????##% "S #????????????????? | | ??????????????####### #????????????????? | | ??????????# # # #????????????????? | | ??????????# # #????????????????? | | ??????????# # %"# #????????????????? | | ??????????# # # ##+#####????????????????? | | ??????????# #??????????????????? | | ??????????# % x #??????????????????? | | ??????????# #??????????????????? | | ??????????# ### ##### ###??????????????????? | | ??????????# # #??### ##???????????????????? | | ??????????# # # # ### ; ;##??????????????????? | | ??????????# ###### #??????????????????? | | ??????????? ?????## ##?????????????????? | | ??????????# #####;; #?????????????????? | | ??????????# #######????????????? | | ??????????+ #????????????? | | ??????????# #????????????? | | ??????????# #####;; #????????????? | | ??????????????# @ ; #????????????? | | ??????????????# #????????????? | | ??????????????# """ ; ;; #????????????? | | ??????????????+ """"" ; ;##+####????????????? | | ??????????????# """"" ; % ?????????????????? | | ?????????????????"""" ; ????????????????? | | ??????????????????"" ; ??????????????? | | ?????????????????? ; ;;#####?????????????? | | ?????????????????? "T" #;;;;;;##?????????????????? | | ?????????????????##############??????????????????? | | ?????????????????????????????????????????????????? | | ?????????????????????????????????????????????????? | | ?????????????????????????????????????????????????? | | ?????????????????????????????????????????????????? | | ?????????????????????????????????????????????????? | | ?????????????????????????????????????????????????? | | ?????????????????????????????????????????????????? | | | | | | | | | | | | | | | | | +----------------------------------------------------+ Best States ------------- Heat Dissipation 28 Energy Generation 15 Energy Capacity 200 Matter Stores 300 Matter Capacity 300 Sight Range 16 Robot Scan Range 14 Terrain Scan Density 10 Resistance: KI 35 Resistance: TH 35 Resistance: EX 35 Resistance: EM 35 Resistance: I 35 Resistance: S 35 Resistance: P 35 Evasion (%) 40 Recoil Reduction 2 Offensive Hacking 20 Item Schematics ----------------- None Robot Schematics ------------------ None Fabricated ------------ Nothing Repaired ---------- Nothing Alien Tech Used ----------------- None Achievements -------------- None Challenges ------------ None Cogshop Purchases (7) ----------------------- Aluminum Leg (Loot Box) Spk. Treads (874) Spk. Treads (874) Sub. Power Source (699) EMP Blaster (1049) Aerolev Unit (Loot Box) Sub. Shrapnel Launcher (1218) Game ------ Seed HugeTerrabombStripper Manual? 0 Play Time 00:17:02 Cumulative 159.4 hours Start 2025.06.14 @ 18:59:10 End 2025.06.14 @ 19:16:26 Sessions 1 Manual Loads 0 Difficulty Explorer Special Mode AFD2019/Pay2Buy Game No. 23 Rogue 1 Adventurer 11 Explorer 11 Win Type - Total 5 Types 4/0/1/0/0/0/0/0/0/0 Lore% 30 Gallery% 52 Achievement% 57 Wizard Run 0 Options --------- Layout 1 ASCII 0 Keyboard 0 Movement Arrows Keybinds 0 Fullscreen 1 Font 24/Smallcaps Map View 50x35 Zoom Use 0% Tactical HUD 1 Map Filters NONE Filters NONE Steam 1 RUN: debd6137-1741-4951-90e1-687f1e4aa271